[Event "Late-Titled-Tuesday-Blitz-June-04-2024"]
[Site "Chess.com"]
[Date "2024.06.04"]
[Round "8"]
[White "ManMish2"]
[Black "GlavkonVVS"]
[Result "1-0"]
[WhiteElo "2646"]
[BlackElo "2545"]
[TimeControl "180+1"]
[EndTime "15:26:36 PDT"]
[Termination "ManMish2 won by checkmate"]

1. e4 {[%clk 0:03:00.9]} 1... Nf6 {[%clk 0:03:00.1]} 2. e5 {[%clk 0:03:01]} 2...
Nd5 {[%clk 0:03:00.4]} 3. Nf3 {[%clk 0:03:01.2]} 3... d6 {[%clk 0:03:00.3]} 4.
d4 {[%clk 0:03:01.6]} 4... Bg4 {[%clk 0:02:59.6]} 5. Be2 {[%clk 0:02:59.3]} 5...
e6 {[%clk 0:02:59.7]} 6. O-O {[%clk 0:02:58.5]} 6... Be7 {[%clk 0:03:00]} 7.
Nbd2 {[%clk 0:02:56]} 7... Nf4 {[%clk 0:02:55]} 8. Ne4 {[%clk 0:02:45.5]} 8...
Nxe2+ {[%clk 0:02:49.9]} 9. Qxe2 {[%clk 0:02:46.4]} 9... Nc6 {[%clk 0:02:45.5]}
10. exd6 {[%clk 0:02:44.6]} 10... cxd6 {[%clk 0:02:17.9]} 11. c3 {[%clk
0:02:40.4]} 11... O-O {[%clk 0:02:13.8]} 12. Ng3 {[%clk 0:02:39]} 12... d5
{[%clk 0:02:01.2]} 13. h3 {[%clk 0:02:37.7]} 13... Bxf3 {[%clk 0:02:01.7]} 14.
Qxf3 {[%clk 0:02:38.4]} 14... Bd6 {[%clk 0:02:00.1]} 15. Bf4 {[%clk 0:02:20.2]}
15... Qc7 {[%clk 0:01:57]} 16. Bxd6 {[%clk 0:02:12.8]} 16... Qxd6 {[%clk
0:01:57]} 17. Rfe1 {[%clk 0:02:09]} 17... b5 {[%clk 0:01:56]} 18. h4 {[%clk
0:01:56.4]} 18... b4 {[%clk 0:01:52]} 19. h5 {[%clk 0:01:56.1]} 19... h6 {[%clk
0:01:49.1]} 20. Rab1 {[%clk 0:01:33.4]} 20... a5 {[%clk 0:01:42.2]} 21. Ne2
{[%clk 0:01:23.1]} 21... Rfc8 {[%clk 0:01:40.8]} 22. Nf4 {[%clk 0:01:17.2]}
22... a4 {[%clk 0:01:33.8]} 23. Nd3 {[%clk 0:01:11.2]} 23... a3 {[%clk
0:01:25.8]} 24. cxb4 {[%clk 0:00:51]} 24... Nxd4 {[%clk 0:01:23.7]} 25. Qg4
{[%clk 0:00:47.3]} 25... Nc2 {[%clk 0:01:18.7]} 26. Rec1 {[%clk 0:00:46.3]}
26... Rc4 {[%clk 0:01:13.5]} 27. Qe2 {[%clk 0:00:37.5]} 27... Rac8 {[%clk
0:01:09.6]} 28. b3 {[%clk 0:00:18.5]} 28... Rc3 {[%clk 0:01:00.2]} 29. Nc5
{[%clk 0:00:16.7]} 29... Nd4 {[%clk 0:00:55.1]} 30. Qd2 {[%clk 0:00:15.7]} 30...
Rxc1+ {[%clk 0:00:54.3]} 31. Rxc1 {[%clk 0:00:16.3]} 31... Qf4 {[%clk
0:00:33.4]} 32. Qxf4 {[%clk 0:00:14.7]} 32... Ne2+ {[%clk 0:00:33.6]} 33. Kf1
{[%clk 0:00:14.9]} 33... Nxf4 {[%clk 0:00:34.5]} 34. g4 {[%clk 0:00:14.6]} 34...
Rb8 {[%clk 0:00:27.3]} 35. Nd7 {[%clk 0:00:14.2]} 35... Rd8 {[%clk 0:00:22.5]}
36. Ne5 {[%clk 0:00:13.8]} 36... f6 {[%clk 0:00:22.2]} 37. Nc6 {[%clk
0:00:13.4]} 37... Rd7 {[%clk 0:00:20.4]} 38. b5 {[%clk 0:00:13.3]} 38... Rb7
{[%clk 0:00:20.5]} 39. Nd4 {[%clk 0:00:08.8]} 39... e5 {[%clk 0:00:20.7]} 40.
Rc8+ {[%clk 0:00:08.2]} 40... Kf7 {[%clk 0:00:20]} 41. Nf5 {[%clk 0:00:08.7]}
41... Ke6 {[%clk 0:00:18.9]} 42. Re8+ {[%clk 0:00:06.4]} 42... Kf7 {[%clk
0:00:17.4]} 43. Nd6# {[%clk 0:00:05.8]} 1-0

[Event "Late-Titled-Tuesday-Blitz-June-04-2024"]
[Site "Chess.com"]
[Date "2024.06.04"]
[Round "8"]
[White "FairChess_on_YouTube"]
[Black "Kiborg95"]
[Result "1-0"]
[WhiteElo "3077"]
[BlackElo "2912"]
[TimeControl "180+1"]
[EndTime "15:26:37 PDT"]
[Termination "FairChess_on_YouTube won by resignation"]

1. d4 {[%clk 0:03:00.9]} 1... d6 {[%clk 0:03:00.4]} 2. Nf3 {[%clk 0:03:00.2]}
2... Nf6 {[%clk 0:02:59.8]} 3. Nc3 {[%clk 0:02:58.6]} 3... Nbd7 {[%clk
0:02:59.6]} 4. e4 {[%clk 0:02:58]} 4... e5 {[%clk 0:03:00]} 5. g3 {[%clk
0:02:57.9]} 5... c6 {[%clk 0:02:59.5]} 6. Bg2 {[%clk 0:02:56.7]} 6... b5 {[%clk
0:02:59.6]} 7. O-O {[%clk 0:02:56]} 7... Bb7 {[%clk 0:02:59.8]} 8. Re1 {[%clk
0:02:53.7]} 8... Be7 {[%clk 0:02:58.6]} 9. Nh4 {[%clk 0:02:53.7]} 9... g6 {[%clk
0:02:58.4]} 10. Bh6 {[%clk 0:02:52.9]} 10... Bf8 {[%clk 0:02:53.8]} 11. Qd2
{[%clk 0:02:49.2]} 11... Bxh6 {[%clk 0:02:47]} 12. Qxh6 {[%clk 0:02:50.1]} 12...
Ng4 {[%clk 0:02:47]} 13. Qd2 {[%clk 0:02:46.5]} 13... O-O {[%clk 0:02:46.4]} 14.
Rad1 {[%clk 0:02:45.5]} 14... Ngf6 {[%clk 0:02:35.6]} 15. dxe5 {[%clk
0:02:42.4]} 15... dxe5 {[%clk 0:02:36.5]} 16. Bh3 {[%clk 0:02:42.3]} 16... Qc7
{[%clk 0:01:18.3]} 17. Qd6 {[%clk 0:02:07.5]} 17... Qxd6 {[%clk 0:00:32.4]} 18.
Rxd6 {[%clk 0:02:08.4]} 18... Rfd8 {[%clk 0:00:31.5]} 19. Bxd7 {[%clk
0:01:53.8]} 19... Nxd7 {[%clk 0:00:15.6]} 20. Red1 {[%clk 0:01:54]} 20... b4
{[%clk 0:00:13.9]} 21. Na4 {[%clk 0:01:51]} 21... Bc8 {[%clk 0:00:13.8]} 22. Nf3
{[%clk 0:01:33.8]} 22... f6 {[%clk 0:00:14.2]} 23. Rxf6 {[%clk 0:01:11.5]} 23...
Nxf6 {[%clk 0:00:12.9]} 24. Rxd8+ {[%clk 0:01:10.8]} 24... Kf7 {[%clk
0:00:13.7]} 25. Nxe5+ {[%clk 0:01:10.6]} 25... Ke6 {[%clk 0:00:14.4]} 26. Nxc6
{[%clk 0:01:06]} 26... Nxe4 {[%clk 0:00:15]} 27. f3 {[%clk 0:00:59.5]} 27... Bb7
{[%clk 0:00:15.5]} 28. Rxa8 {[%clk 0:00:54.7]} 28... Bxa8 {[%clk 0:00:16.4]} 29.
Nd8+ {[%clk 0:00:47.5]} 29... Kd7 {[%clk 0:00:16.3]} 30. fxe4 {[%clk 0:00:47]}
30... Kxd8 {[%clk 0:00:15.9]} 31. Nc5 {[%clk 0:00:47.6]} 31... Kc7 {[%clk
0:00:15.2]} 32. Kf2 {[%clk 0:00:46.8]} 32... Kd6 {[%clk 0:00:13.3]} 33. Nd3
{[%clk 0:00:46.9]} 33... Bxe4 {[%clk 0:00:13]} 34. Ke3 {[%clk 0:00:46.8]} 34...
Bf5 {[%clk 0:00:13.1]} 35. Nxb4 {[%clk 0:00:46.5]} 35... a5 {[%clk 0:00:13.6]}
36. Nd3 {[%clk 0:00:46.7]} 36... Kd5 {[%clk 0:00:12.2]} 37. b3 {[%clk
0:00:45.5]} 37... g5 {[%clk 0:00:12.6]} 38. c4+ {[%clk 0:00:45.5]} 38... Ke6
{[%clk 0:00:13.2]} 39. a3 {[%clk 0:00:43.9]} 39... Kd6 {[%clk 0:00:12.8]} 40.
Kd4 {[%clk 0:00:43.6]} 40... Bg4 {[%clk 0:00:11.5]} 41. b4 {[%clk 0:00:43.8]}
41... axb4 {[%clk 0:00:12.4]} 42. axb4 {[%clk 0:00:44.3]} 42... h5 {[%clk
0:00:13.3]} 43. b5 {[%clk 0:00:44.6]} 43... h4 {[%clk 0:00:13.6]} 44. c5+ {[%clk
0:00:44.9]} 44... Kc7 {[%clk 0:00:13.7]} 45. Ne5 {[%clk 0:00:44]} 45... hxg3
{[%clk 0:00:13.6]} 46. hxg3 {[%clk 0:00:44.2]} 46... Bf5 {[%clk 0:00:13.5]} 47.
Nf3 {[%clk 0:00:43.6]} 47... g4 {[%clk 0:00:13.7]} 48. Ne5 {[%clk 0:00:43.8]}
48... Be6 {[%clk 0:00:14.4]} 49. Nd3 {[%clk 0:00:43.6]} 49... Bf5 {[%clk
0:00:14.8]} 50. Nf4 {[%clk 0:00:43.7]} 50... Bc2 {[%clk 0:00:15]} 51. Nd5+
{[%clk 0:00:43.1]} 51... Kb7 {[%clk 0:00:15.2]} 52. c6+ {[%clk 0:00:43.4]} 52...
Kc8 {[%clk 0:00:15.8]} 53. Kc5 {[%clk 0:00:44]} 53... Be4 {[%clk 0:00:15]} 54.
b6 {[%clk 0:00:43.9]} 54... Kb8 {[%clk 0:00:15.6]} 55. Kd6 {[%clk 0:00:43.6]}
55... Bf3 {[%clk 0:00:15.8]} 56. Ne7 {[%clk 0:00:43.6]} 56... Bxc6 {[%clk
0:00:14.2]} 57. Kxc6 {[%clk 0:00:42.9]} 57... Ka8 {[%clk 0:00:14.2]} 58. Nd5
{[%clk 0:00:43.5]} 58... Kb8 {[%clk 0:00:14.5]} 59. Nf6 {[%clk 0:00:44.4]} 59...
Ka8 {[%clk 0:00:15.1]} 60. Nxg4 {[%clk 0:00:45.3]} 60... Kb8 {[%clk 0:00:16]}
61. Nf6 {[%clk 0:00:45.9]} 1-0

[Event "Late-Titled-Tuesday-Blitz-June-04-2024"]
[Site "Chess.com"]
[Date "2024.06.04"]
[Round "8"]
[White "kalxandria"]
[Black "PNEPaul"]
[Result "1-0"]
[WhiteElo "2229"]
[BlackElo "1924"]
[TimeControl "180+1"]
[EndTime "15:26:38 PDT"]
[Termination "kalxandria won by resignation"]

1. e4 {[%clk 0:03:00.9]} 1... e5 {[%clk 0:02:46.3]} 2. Bc4 {[%clk 0:02:59.7]}
2... Nc6 {[%clk 0:02:46.2]} 3. d3 {[%clk 0:02:59.1]} 3... Be7 {[%clk 0:02:46.2]}
4. f4 {[%clk 0:02:58.5]} 4... Bc5 {[%clk 0:02:45.5]} 5. Nf3 {[%clk 0:02:57]}
5... d6 {[%clk 0:02:45.5]} 6. Nc3 {[%clk 0:02:55]} 6... Nf6 {[%clk 0:02:45.4]}
7. Na4 {[%clk 0:02:51.9]} 7... Bg4 {[%clk 0:02:43.8]} 8. Nxc5 {[%clk 0:02:44.7]}
8... dxc5 {[%clk 0:02:43.2]} 9. h3 {[%clk 0:02:36.1]} 9... Bxf3 {[%clk 0:02:36]}
10. Qxf3 {[%clk 0:02:37]} 10... O-O {[%clk 0:02:33.7]} 11. O-O {[%clk
0:02:33.3]} 11... exf4 {[%clk 0:02:33.5]} 12. Bxf4 {[%clk 0:02:31.3]} 12... Qd4+
{[%clk 0:02:33.3]} 13. Be3 {[%clk 0:02:27.7]} 13... Qxb2 {[%clk 0:02:33]} 14.
Bxc5 {[%clk 0:02:11]} 14... Ne5 {[%clk 0:02:19.7]} 15. Qf2 {[%clk 0:01:44.5]}
15... Nxc4 {[%clk 0:02:12.6]} 16. Bxf8 {[%clk 0:01:39.5]} 16... Rxf8 {[%clk
0:02:09.6]} 17. dxc4 {[%clk 0:01:39.4]} 17... Nxe4 {[%clk 0:02:09.4]} 18. Qxa7
{[%clk 0:01:37.3]} 18... Qxc2 {[%clk 0:02:01.8]} 19. Qd4 {[%clk 0:01:15.4]}
19... Nd6 {[%clk 0:01:47]} 20. c5 {[%clk 0:01:13.3]} 20... Nb5 {[%clk 0:01:39]}
21. Qf2 {[%clk 0:01:11.7]} 21... Qg6 {[%clk 0:01:30.7]} 22. a4 {[%clk
0:01:10.7]} 22... Nc3 {[%clk 0:01:29.1]} 23. a5 {[%clk 0:01:07.8]} 23... Ne4
{[%clk 0:01:27.8]} 24. Qf5 {[%clk 0:01:05]} 24... Qc6 {[%clk 0:01:15.4]} 25.
Rae1 {[%clk 0:01:04.3]} 25... Ng3 {[%clk 0:01:10.5]} 26. Qf3 {[%clk 0:00:57.2]}
26... Nxf1 {[%clk 0:01:08.7]} 27. Qxc6 {[%clk 0:00:56.6]} 27... bxc6 {[%clk
0:01:08.2]} 28. Kxf1 {[%clk 0:00:56.4]} 28... Ra8 {[%clk 0:00:55.9]} 29. Ra1
{[%clk 0:00:55.9]} 29... Kf8 {[%clk 0:00:45.1]} 30. Ke2 {[%clk 0:00:55.5]} 30...
Ke7 {[%clk 0:00:45.4]} 31. Kd3 {[%clk 0:00:55.8]} 31... Ke6 {[%clk 0:00:45.6]}
32. Kd4 {[%clk 0:00:55.3]} 32... f5 {[%clk 0:00:45.1]} 33. Kc4 {[%clk 0:00:53]}
33... g5 {[%clk 0:00:43.5]} 34. a6 {[%clk 0:00:50.8]} 34... Ra7 {[%clk 0:00:41]}
35. Kb4 {[%clk 0:00:24.6]} 35... h5 {[%clk 0:00:32.1]} 36. Re1+ {[%clk
0:00:23.5]} 36... Kd5 {[%clk 0:00:30.9]} 37. Ka5 {[%clk 0:00:24.4]} 37... Kxc5
{[%clk 0:00:27.7]} 38. Re5+ {[%clk 0:00:24.1]} 38... Kd6 {[%clk 0:00:21.6]} 39.
Rxf5 {[%clk 0:00:25]} 39... g4 {[%clk 0:00:21.1]} 40. Rxh5 {[%clk 0:00:24.8]}
40... gxh3 {[%clk 0:00:21]} 41. gxh3 {[%clk 0:00:25]} 41... c5 {[%clk
0:00:19.2]} 42. Rh8 {[%clk 0:00:23.2]} 42... c4 {[%clk 0:00:16.3]} 43. Rb8
{[%clk 0:00:21.2]} 43... Kc5 {[%clk 0:00:14.1]} 44. Rb7 {[%clk 0:00:18.3]} 44...
Ra8 {[%clk 0:00:07.8]} 45. Rxc7+ {[%clk 0:00:18.2]} 45... Kd4 {[%clk 0:00:08]}
46. a7 {[%clk 0:00:16.5]} 46... c3 {[%clk 0:00:08.1]} 47. Kb6 {[%clk 0:00:15.4]}
47... Kd3 {[%clk 0:00:08.3]} 48. Kb7 {[%clk 0:00:14.7]} 1-0

[Event "Late-Titled-Tuesday-Blitz-June-04-2024"]
[Site "Chess.com"]
[Date "2024.06.04"]
[Round "8"]
[White "bubeliang"]
[Black "Stanbad1"]
[Result "1-0"]
[WhiteElo "2851"]
[BlackElo "2660"]
[TimeControl "180+1"]
[EndTime "15:26:39 PDT"]
[Termination "bubeliang won by checkmate"]

1. b3 {[%clk 0:03:00.9]} 1... Nf6 {[%clk 0:02:59.4]} 2. Bb2 {[%clk 0:03:01.8]}
2... g6 {[%clk 0:02:59.6]} 3. Bxf6 {[%clk 0:02:56]} 3... exf6 {[%clk 0:02:59]}
4. d4 {[%clk 0:02:55.9]} 4... b6 {[%clk 0:02:59.1]} 5. Nf3 {[%clk 0:02:51.6]}
5... Bg7 {[%clk 0:02:59.4]} 6. g3 {[%clk 0:02:50.5]} 6... Bb7 {[%clk 0:02:59.8]}
7. Bg2 {[%clk 0:02:50.6]} 7... f5 {[%clk 0:03:00.2]} 8. O-O {[%clk 0:02:50.2]}
8... O-O {[%clk 0:02:57]} 9. Nbd2 {[%clk 0:02:48.7]} 9... d6 {[%clk 0:02:56.9]}
10. e3 {[%clk 0:02:48]} 10... Nd7 {[%clk 0:02:56.8]} 11. Re1 {[%clk 0:02:46.8]}
11... Re8 {[%clk 0:02:56.8]} 12. c4 {[%clk 0:02:45.9]} 12... c5 {[%clk
0:02:56.9]} 13. Qc2 {[%clk 0:02:42.8]} 13... Nf6 {[%clk 0:02:54.8]} 14. Rad1
{[%clk 0:02:41.4]} 14... Ne4 {[%clk 0:02:54.5]} 15. Qc1 {[%clk 0:02:35.5]} 15...
Qe7 {[%clk 0:02:53.4]} 16. Nb1 {[%clk 0:02:27.3]} 16... h5 {[%clk 0:02:45.1]}
17. h4 {[%clk 0:02:25.6]} 17... Rad8 {[%clk 0:02:42.3]} 18. Nc3 {[%clk
0:02:23.2]} 18... a6 {[%clk 0:02:41.9]} 19. Qc2 {[%clk 0:02:18.5]} 19... Qc7
{[%clk 0:02:39.5]} 20. Qd3 {[%clk 0:01:59.7]} 20... Qe7 {[%clk 0:02:24.5]} 21.
Nd2 {[%clk 0:01:46.6]} 21... Nxc3 {[%clk 0:02:18.6]} 22. Qxc3 {[%clk 0:01:46.2]}
22... Bxg2 {[%clk 0:02:09.8]} 23. Kxg2 {[%clk 0:01:45.2]} 23... Qb7+ {[%clk
0:02:10.4]} 24. Kg1 {[%clk 0:01:43.9]} 24... d5 {[%clk 0:02:10.8]} 25. cxd5
{[%clk 0:01:33.5]} 25... cxd4 {[%clk 0:02:08.4]} 26. exd4 {[%clk 0:01:34.4]}
26... Rxe1+ {[%clk 0:02:07.3]} 27. Rxe1 {[%clk 0:01:35.3]} 27... Qxd5 {[%clk
0:02:07.6]} 28. Qc4 {[%clk 0:00:39.5]} 28... Bxd4 {[%clk 0:02:05.3]} 29. Re8+
{[%clk 0:00:30.5]} 29... Kg7 {[%clk 0:02:05.4]} 30. Rxd8 {[%clk 0:00:30.6]}
30... Qxd8 {[%clk 0:02:06]} 31. Nf3 {[%clk 0:00:29.9]} 31... Bc5 {[%clk
0:02:03.4]} 32. b4 {[%clk 0:00:29.2]} 32... Be7 {[%clk 0:01:59.2]} 33. Ne5
{[%clk 0:00:22.8]} 33... Qe8 {[%clk 0:01:54.4]} 34. a3 {[%clk 0:00:15.5]} 34...
Bd6 {[%clk 0:01:45.9]} 35. Nd3 {[%clk 0:00:13.2]} 35... Qe4 {[%clk 0:01:36.2]}
36. Qxa6 {[%clk 0:00:11.9]} 36... f4 {[%clk 0:01:35.6]} 37. gxf4 {[%clk
0:00:08.9]} 37... Bxf4 {[%clk 0:01:33.9]} 38. Nxf4 {[%clk 0:00:06.4]} 38... Qxf4
{[%clk 0:01:34.8]} 39. Qxb6 {[%clk 0:00:06.3]} 39... Qg4+ {[%clk 0:01:35.2]} 40.
Kf1 {[%clk 0:00:06]} 40... Qd1+ {[%clk 0:01:35.4]} 41. Kg2 {[%clk 0:00:05.9]}
41... Qg4+ {[%clk 0:01:36.1]} 42. Kf1 {[%clk 0:00:06.5]} 42... Qxh4 {[%clk
0:01:35.7]} 43. Qe3 {[%clk 0:00:06.2]} 43... Qc4+ {[%clk 0:01:35]} 44. Kg2
{[%clk 0:00:06.3]} 44... h4 {[%clk 0:01:34.2]} 45. Qe5+ {[%clk 0:00:05.8]} 45...
Kh7 {[%clk 0:01:29]} 46. Qf6 {[%clk 0:00:04.3]} 46... Kh6 {[%clk 0:01:25.5]} 47.
Kh3 {[%clk 0:00:01.6]} 47... Kh5 {[%clk 0:01:15.3]} 48. Qh8+ {[%clk 0:00:02.1]}
48... Kg5 {[%clk 0:01:15.4]} 49. Qe5+ {[%clk 0:00:03]} 49... Kh6 {[%clk
0:01:12.6]} 50. Qh8+ {[%clk 0:00:03.9]} 50... Kg5 {[%clk 0:01:12.9]} 51. Qe5+
{[%clk 0:00:04.8]} 51... Kh6 {[%clk 0:00:59.4]} 52. f4 {[%clk 0:00:02.4]} 52...
Qf1+ {[%clk 0:00:55.4]} 53. Kxh4 {[%clk 0:00:01.8]} 53... Qf2+ {[%clk
0:00:53.7]} 54. Kh3 {[%clk 0:00:02.3]} 54... Qf3+ {[%clk 0:00:53.6]} 55. Kh2
{[%clk 0:00:02.7]} 55... Qf2+ {[%clk 0:00:53.8]} 56. Kh1 {[%clk 0:00:03.2]}
56... Qf1+ {[%clk 0:00:53.5]} 57. Kh2 {[%clk 0:00:03.8]} 57... Qf2+ {[%clk
0:00:54]} 58. Kh3 {[%clk 0:00:04.3]} 58... Qf3+ {[%clk 0:00:54.2]} 59. Kh4
{[%clk 0:00:03.7]} 59... Qxa3 {[%clk 0:00:50.1]} 60. Qh8# {[%clk 0:00:03.2]} 1-0

[Event "Late-Titled-Tuesday-Blitz-June-04-2024"]
[Site "Chess.com"]
[Date "2024.06.04"]
[Round "8"]
[White "xakevicius91"]
[Black "Rital44"]
[Result "0-1"]
[WhiteElo "2558"]
[BlackElo "2698"]
[TimeControl "180+1"]
[EndTime "15:26:42 PDT"]
[Termination "Rital44 won by resignation"]

1. e4 {[%clk 0:02:52.7]} 1... c5 {[%clk 0:02:59.9]} 2. Nf3 {[%clk 0:02:42]} 2...
Nc6 {[%clk 0:02:58.9]} 3. Bc4 {[%clk 0:02:40.7]} 3... d6 {[%clk 0:02:40.8]} 4.
O-O {[%clk 0:02:38.1]} 4... g6 {[%clk 0:02:38.5]} 5. c3 {[%clk 0:02:37.9]} 5...
Bg7 {[%clk 0:02:37.3]} 6. d4 {[%clk 0:02:37.9]} 6... cxd4 {[%clk 0:02:36.5]} 7.
cxd4 {[%clk 0:02:38.8]} 7... Bg4 {[%clk 0:02:34]} 8. Be3 {[%clk 0:02:34]} 8...
Nf6 {[%clk 0:02:32]} 9. h3 {[%clk 0:02:31.4]} 9... Bd7 {[%clk 0:02:28.8]} 10.
Nc3 {[%clk 0:02:25.4]} 10... O-O {[%clk 0:02:27.9]} 11. e5 {[%clk 0:02:18.9]}
11... Ne8 {[%clk 0:02:25.3]} 12. Qe2 {[%clk 0:02:11.4]} 12... dxe5 {[%clk
0:02:23.2]} 13. dxe5 {[%clk 0:02:11.5]} 13... Nxe5 {[%clk 0:02:23.6]} 14. Nxe5
{[%clk 0:02:07.1]} 14... Bxe5 {[%clk 0:02:24.5]} 15. Bh6 {[%clk 0:02:06.9]}
15... Bg7 {[%clk 0:02:24.9]} 16. Bg5 {[%clk 0:02:02.3]} 16... Nf6 {[%clk
0:02:23.2]} 17. Rfd1 {[%clk 0:01:57]} 17... Qc8 {[%clk 0:02:19.2]} 18. Nd5
{[%clk 0:01:35]} 18... Nxd5 {[%clk 0:02:14.9]} 19. Bxd5 {[%clk 0:01:35.9]} 19...
e6 {[%clk 0:02:14.2]} 20. Rac1 {[%clk 0:01:33.3]} 20... Bc6 {[%clk 0:01:51.2]}
21. Bxc6 {[%clk 0:01:29.4]} 21... bxc6 {[%clk 0:01:52.1]} 22. b3 {[%clk
0:01:28.3]} 22... Qb7 {[%clk 0:01:44.1]} 23. h4 {[%clk 0:01:14.7]} 23... a5
{[%clk 0:01:39.3]} 24. Rc4 {[%clk 0:01:08.9]} 24... Qb5 {[%clk 0:01:32.2]} 25.
Qe4 {[%clk 0:01:00.5]} 25... Rfc8 {[%clk 0:01:23.7]} 26. Rd6 {[%clk 0:00:54.1]}
26... c5 {[%clk 0:01:08.2]} 27. h5 {[%clk 0:00:49]} 27... Bf8 {[%clk 0:00:57.4]}
28. Rd3 {[%clk 0:00:46.8]} 28... Qc6 {[%clk 0:00:55.4]} 29. Qg4 {[%clk
0:00:45.5]} 29... Ra7 {[%clk 0:00:30.7]} 30. hxg6 {[%clk 0:00:39.4]} 30... hxg6
{[%clk 0:00:29.1]} 31. Bf6 {[%clk 0:00:39.8]} 31... Bg7 {[%clk 0:00:24.2]} 32.
Rf3 {[%clk 0:00:32]} 32... Rd7 {[%clk 0:00:23.1]} 33. Rcf4 {[%clk 0:00:28.2]}
33... Rd1+ {[%clk 0:00:21.3]} 34. Kh2 {[%clk 0:00:27.7]} 34... Qd6 {[%clk
0:00:21.5]} 35. Bxg7 {[%clk 0:00:27.2]} 35... Kxg7 {[%clk 0:00:22.4]} 36. g3
{[%clk 0:00:24.4]} 36... Rh8+ {[%clk 0:00:22.2]} 37. Kg2 {[%clk 0:00:24.8]}
37... Rf8 {[%clk 0:00:19.5]} 38. Qg5 {[%clk 0:00:21.6]} 38... e5 {[%clk
0:00:18.5]} 39. Rf6 {[%clk 0:00:20.1]} 39... Qd5 {[%clk 0:00:17.5]} 40. Ra6
{[%clk 0:00:06.9]} 40... Rd3 {[%clk 0:00:16]} 41. Qf6+ {[%clk 0:00:04.5]} 41...
Kg8 {[%clk 0:00:16.2]} 42. g4 {[%clk 0:00:03.8]} 42... e4 {[%clk 0:00:14.8]} 43.
Rxd3 {[%clk 0:00:04.2]} 43... exd3+ {[%clk 0:00:15.7]} 44. Kg3 {[%clk 0:00:04]}
44... d2 {[%clk 0:00:16.1]} 45. Rd6 {[%clk 0:00:04.6]} 45... d1=Q {[%clk
0:00:15.9]} 46. Rxd5 {[%clk 0:00:05.2]} 46... Qxd5 {[%clk 0:00:16.7]} 0-1

[Event "Late-Titled-Tuesday-Blitz-June-04-2024"]
[Site "Chess.com"]
[Date "2024.06.04"]
[Round "8"]
[White "HansOnTwitch"]
[Black "MITerryble"]
[Result "1-0"]
[WhiteElo "3146"]
[BlackElo "3026"]
[TimeControl "180+1"]
[EndTime "15:26:45 PDT"]
[Termination "HansOnTwitch won on time"]

1. c4 {[%clk 0:02:47.1]} 1... e5 {[%clk 0:02:57.8]} 2. g3 {[%clk 0:02:24.6]}
2... Nf6 {[%clk 0:02:55.1]} 3. Bg2 {[%clk 0:02:24.5]} 3... c6 {[%clk 0:02:55]}
4. d4 {[%clk 0:02:24.5]} 4... Bb4+ {[%clk 0:02:54.8]} 5. Bd2 {[%clk 0:02:21.9]}
5... Bxd2+ {[%clk 0:02:54.6]} 6. Qxd2 {[%clk 0:02:22.8]} 6... d6 {[%clk
0:02:55.1]} 7. Nc3 {[%clk 0:02:23.3]} 7... O-O {[%clk 0:02:55]} 8. O-O-O {[%clk
0:02:17.2]} 8... Qa5 {[%clk 0:02:46.1]} 9. Kb1 {[%clk 0:02:14.7]} 9... Bf5+
{[%clk 0:02:17.6]} 10. e4 {[%clk 0:02:05.4]} 10... Be6 {[%clk 0:02:17.6]} 11. d5
{[%clk 0:02:05.8]} 11... cxd5 {[%clk 0:02:17.6]} 12. Nxd5 {[%clk 0:02:03.5]}
12... Qxd2 {[%clk 0:02:05.1]} 13. Rxd2 {[%clk 0:02:02.5]} 13... Nxd5 {[%clk
0:01:52.7]} 14. cxd5 {[%clk 0:02:00.8]} 14... Bd7 {[%clk 0:01:52.7]} 15. f4
{[%clk 0:02:01]} 15... f6 {[%clk 0:01:52.1]} 16. Ne2 {[%clk 0:01:57.4]} 16...
Na6 {[%clk 0:01:51.9]} 17. Nc3 {[%clk 0:01:56.1]} 17... Rac8 {[%clk 0:01:49.3]}
18. Rc1 {[%clk 0:01:55.8]} 18... Rc5 {[%clk 0:01:32]} 19. a3 {[%clk 0:01:51.1]}
19... Rfc8 {[%clk 0:01:31.6]} 20. Rdc2 {[%clk 0:01:47]} 20... Kf7 {[%clk
0:01:29.1]} 21. Bf1 {[%clk 0:01:43.8]} 21... Ke7 {[%clk 0:01:28.2]} 22. b4
{[%clk 0:01:41.9]} 22... R5c7 {[%clk 0:01:27.9]} 23. Bd3 {[%clk 0:01:33.7]}
23... Nb8 {[%clk 0:01:22.5]} 24. Kb2 {[%clk 0:01:33.8]} 24... Be8 {[%clk
0:01:19]} 25. Be2 {[%clk 0:01:28.1]} 25... h5 {[%clk 0:01:09.3]} 26. a4 {[%clk
0:01:22.2]} 26... Nd7 {[%clk 0:01:05.2]} 27. a5 {[%clk 0:01:15.9]} 27... Nf8
{[%clk 0:01:00.8]} 28. f5 {[%clk 0:01:14.5]} 28... g6 {[%clk 0:00:47.7]} 29.
fxg6 {[%clk 0:00:46.8]} 29... Bxg6 {[%clk 0:00:48.6]} 30. Bd3 {[%clk 0:00:45.5]}
30... Nh7 {[%clk 0:00:44.4]} 31. h4 {[%clk 0:00:45.4]} 31... Nf8 {[%clk
0:00:40.4]} 32. Nd1 {[%clk 0:00:44.3]} 32... Rxc2+ {[%clk 0:00:38.2]} 33. Rxc2
{[%clk 0:00:45.2]} 33... Rxc2+ {[%clk 0:00:38.5]} 34. Kxc2 {[%clk 0:00:46.1]}
34... Kd7 {[%clk 0:00:26.3]} 35. Ne3 {[%clk 0:00:46]} 35... Kc7 {[%clk
0:00:26.7]} 36. Kd2 {[%clk 0:00:43.2]} 36... Bh7 {[%clk 0:00:22.5]} 37. Ke2
{[%clk 0:00:40.3]} 37... b6 {[%clk 0:00:14.6]} 38. a6 {[%clk 0:00:39.4]} 38...
b5 {[%clk 0:00:14]} 39. Nd1 {[%clk 0:00:35.2]} 39... Bg6 {[%clk 0:00:03.7]} 40.
Nc3 {[%clk 0:00:35.5]} 40... Kb6 {[%clk 0:00:01.9]} 41. Bxb5 {[%clk 0:00:23.4]}
41... f5 {[%clk 0:00:01.2]} 42. exf5 {[%clk 0:00:19.9]} 42... Bxf5 {[%clk
0:00:01.5]} 43. Bc4 {[%clk 0:00:18.3]} 43... Nd7 {[%clk 0:00:01.1]} 44. Nb5
{[%clk 0:00:16.4]} 44... Nf6 {[%clk 0:00:01]} 45. Nxd6 {[%clk 0:00:16.3]} 45...
Bd7 {[%clk 0:00:01]} 46. Nf7 {[%clk 0:00:15]} 1-0